Workbook

Sheet INGRESO DE DATOS
A8: COTIZACION DE SEGURO MEDICO INTERNACIONAL
A10: 1. INGRESE LOS DATOS DEL PROPUESTO ASEGURADO:
C12: Nombre del Asegurado principal: | D12: NOMBRE COMPLETO
F14: Número de adultos en la póliza: | G14: 2 | I14: Número de hijos en la póliza: | J14: 5
F16: Edad del titular: | G16: 50 | I16: Edad de cónyuge: | J16: 55
A19: 2. INGRESE EL NOMBRE DE LA AGENCIA ASESORA:
C21: Nombre de la Agencia : | D21: AGENCIA
A24: 3. ESCOJA EL PRODUCTO PARA VISUALIZAR LA COTIZACION RESPECTIVA:

Sheet Exclusive
C10: Cotización de Seguro Médico Internacional - Bupa EXCLUSIVE Care
H12: =+'INGRESO DE DATOS'!$D$12 -> NOMBRE COMPLETO
H14: =+'INGRESO DE DATOS'!$D$21 -> AGENCIA
J16: =+'INGRESO DE DATOS'!$G$14 -> 2 | M16: =+'INGRESO DE DATOS'!$G$16 -> 50
F17: FECHA DE COTIZACION :
F18: =NOW() -> 2023-08-16T10:35:00.180 | J18: =+'INGRESO DE DATOS'!$J$14 -> 5 | M18: =+'INGRESO DE DATOS'!$J$16 -> 55
I20: FALSE | K20: COMPLICACIONES DE MATERNIDAD
J22: FALSE
F25: Deducibles | H25: PLAN 1 | I25: PLAN 2 | J25: PLAN 3 | K25: PLAN 4 | L25: PLAN 5 | M25: PLAN 6
F26: Dentro del pais de residencia | H26: n/a | I26: 1000 | J26: 2000 | K26: 5000 | L26: 10000 | M26: 20000
F27: Fuera del pais de residencia | H27: n/a | I27: 2000 | J27: 3000 | K27: 5000 | L27: 10000 | M27: 20000
F30: Tarifas Anuales
F31: Prima de Titular : | H31: n/a | I31: =VLOOKUP($M$16,Tablas!$A$6:$H$29,4,TRUE) -> 40486 | J31: =VLOOKUP($M$16,Tablas!$A$6:$H$29,5,TRUE) -> 28113 | K31: =VLOOKUP($M$16,Tablas!$A$6:$H$29,6,TRUE) -> 19652 | L31: =VLOOKUP($M$16,Tablas!$A$6:$H$29,7,TRUE) -> 15868 | M31: =VLOOKUP($M$16,Tablas!$A$6:$H$29,8,TRUE) -> 12505
F32: Prima de Cónyuge | H32: n/a | I32: =IF($J$16=1,0,(VLOOKUP($M$18,Tablas!$A$6:$H$29,4,TRUE))) -> 43082 | J32: =IF($J$16=1,0,(VLOOKUP($M$18,Tablas!$A$6:$H$29,5,TRUE))) -> 29915 | K32: =IF($J$16=1,0,(VLOOKUP($M$18,Tablas!$A$6:$H$29,6,TRUE))) -> 20911 | L32: =IF($J$16=1,0,(VLOOKUP($M$18,Tablas!$A$6:$H$29,7,TRUE))) -> 16891 | M32: =IF($J$16=1,0,(VLOOKUP($M$18,Tablas!$A$6:$H$29,8,TRUE))) -> 13315
F33: Primas Hijos : | H33: n/a | I33: =IF($J$18=0,0,(VLOOKUP($J$18,Tablas!$A$30:$H$32,4,TRUE))) -> 16193 | J33: =IF($J$18=0,0,(VLOOKUP($J$18,Tablas!$A$30:$H$32,5,TRUE))) -> 11945 | K33: =IF($J$18=0,0,(VLOOKUP($J$18,Tablas!$A$30:$H$32,6,TRUE))) -> 9101 | L33: =IF($J$18=0,0,(VLOOKUP($J$18,Tablas!$A$30:$H$32,7,TRUE))) -> 7597 | M33: =IF($J$18=0,0,(VLOOKUP($J$18,Tablas!$A$30:$H$32,8,TRUE))) -> 5911
F34: Prima Rider Complic. Maternidad | H34: n/a | I34: =+IF($I$20=FALSE,0,Tablas!D$33) -> 0 | J34: =+IF($I$20=FALSE,0,Tablas!E$33) -> 0 | K34: =+IF($I$20=FALSE,0,Tablas!F$33) -> 0 | L34: =+IF($I$20=FALSE,0,Tablas!G$33) -> 0 | M34: =+IF($I$20=FALSE,0,Tablas!H$33) -> 0
F35: TOTAL PRIMA NETA : | H35: n/a | I35: =SUM(I31:I34) -> 99761 | J35: =SUM(J31:J34) -> 69973 | K35: =SUM(K31:K34) -> 49664 | L35: =SUM(L31:L34) -> 40356 | M35: =SUM(M31:M34) -> 31731
F36: Costo Administrativo Anual : | H36: n/a | I36: 75 | J36: 75 | K36: 75 | L36: 75 | M36: 75
F37: GRAN TOTAL : | H37: n/a | I37: =SUM(I35:I36) -> 99836 | J37: =SUM(J35:J36) -> 70048 | K37: =SUM(K35:K36) -> 49739 | L37: =SUM(L35:L36) -> 40431 | M37: =SUM(M35:M36) -> 31806
F39: Tarifas Semestrales
F40: Prima de Titular : | H40: n/a | I40: =VLOOKUP($M$16,Tablas!$A$39:$H$62,4,TRUE) -> 21457.58 | J40: =VLOOKUP($M$16,Tablas!$A$39:$H$62,5,TRUE) -> 14899.89 | K40: =VLOOKUP($M$16,Tablas!$A$39:$H$62,6,TRUE) -> 10415.56 | L40: =VLOOKUP($M$16,Tablas!$A$39:$H$62,7,TRUE) -> 8410.04 | M40: =VLOOKUP($M$16,Tablas!$A$39:$H$62,8,TRUE) -> 6627.65
F41: Prima de Cónyuge | H41: n/a | I41: =IF($J$16=1,0,(VLOOKUP($M$18,Tablas!$A$39:$H$62,4,TRUE))) -> 22833.46 | J41: =IF($J$16=1,0,(VLOOKUP($M$18,Tablas!$A$39:$H$62,5,TRUE))) -> 15854.95 | K41: =IF($J$16=1,0,(VLOOKUP($M$18,Tablas!$A$39:$H$62,6,TRUE))) -> 11082.83 | L41: =IF($J$16=1,0,(VLOOKUP($M$18,Tablas!$A$39:$H$62,7,TRUE))) -> 8952.23 | M41: =IF($J$16=1,0,(VLOOKUP($M$18,Tablas!$A$39:$H$62,8,TRUE))) -> 7056.95
F42: Primas Hijos : | H42: n/a | I42: =IF($J$18=0,0,(VLOOKUP($J$18,Tablas!$A$63:$H$65,4,TRUE))) -> 8582.29 | J42: =IF($J$18=0,0,(VLOOKUP($J$18,Tablas!$A$63:$H$65,5,TRUE))) -> 6330.85 | K42: =IF($J$18=0,0,(VLOOKUP($J$18,Tablas!$A$63:$H$65,6,TRUE))) -> 4823.53 | L42: =IF($J$18=0,0,(VLOOKUP($J$18,Tablas!$A$63:$H$65,7,TRUE))) -> 4026.41 | M42: =IF($J$18=0,0,(VLOOKUP($J$18,Tablas!$A$63:$H$65,8,TRUE))) -> 3132.83
F43: Prima Rider Complic. Maternidad | H43: n/a | I43: =+IF($I$20=FALSE,0,Tablas!D$66) -> 0 | J43: =+IF($I$20=FALSE,0,Tablas!E$66) -> 0 | K43: =+IF($I$20=FALSE,0,Tablas!F$66) -> 0 | L43: =+IF($I$20=FALSE,0,Tablas!G$66) -> 0 | M43: =+IF($I$20=FALSE,0,Tablas!H$66) -> 0
F44: TOTAL PRIMA NETA : | H44: n/a | I44: =SUM(I40:I43) -> 52873.33 | J44: =SUM(J40:J43) -> 37085.69 | K44: =SUM(K40:K43) -> 26321.92 | L44: =SUM(L40:L43) -> 21388.68 | M44: =SUM(M40:M43) -> 16817.43
F45: Costo Administrativo Anual : | H45: n/a | I45: 75 | J45: 75 | K45: 75 | L45: 75 | M45: 75
F46: GRAN TOTAL (1ra Cuota) : | H46: n/a | I46: =SUM(I44:I45) -> 52948.33 | J46: =SUM(J44:J45) -> 37160.69 | K46: =SUM(K44:K45) -> 26396.92 | L46: =SUM(L44:L45) -> 21463.68 | M46: =SUM(M44:M45) -> 16892.43
F47: GRAN TOTAL (2da Cuota) : | H47: n/a | I47: =I44 -> 52873.33 | J47: =J44 -> 37085.69 | K47: 26321.92 | L47: 21388.68 | M47: 16817.43
F48: Tarifas en US $ - Válidas desde 01 enero 2023
F50: Este presupuesto solamente tiene carácter informativo y en ningún momento expresa compromiso legal para suministrarle cobertura de seguro. La emisión de una póliza de seguro Bupa está sujeta a todas las evaluaciones de riesgo por parte de Bupa y a la recepción de todos los pagos de prima requeridos.

Sheet Privilege
C10: Cotización de Seguro Médico Internacional - Bupa PRIVILEGE Care
H12: =+'INGRESO DE DATOS'!$D$12 -> NOMBRE COMPLETO
H14: =+'INGRESO DE DATOS'!$D$21 -> AGENCIA
J16: =+'INGRESO DE DATOS'!$G$14 -> 2 | M16: =+'INGRESO DE DATOS'!$G$16 -> 50
F17: FECHA DE COTIZACION :
F18: =NOW() -> 2023-08-16T10:35:00.180 | J18: =+'INGRESO DE DATOS'!$J$14 -> 5 | M18: =+'INGRESO DE DATOS'!$J$16 -> 55
I20: TRUE | K20: COMPLICACIONES DE MATERNIDAD
J22: FALSE
F25: Deducibles | H25: PLAN 1 | I25: PLAN 2 | J25: PLAN 3 | K25: PLAN 4 | L25: PLAN 5 | M25: PLAN 6
F26: Dentro del pais de residencia | H26: n/a | I26: 1000 | J26: 2000 | K26: 5000 | L26: 10000 | M26: 20000
F27: Fuera del pais de residencia | H27: n/a | I27: 2000 | J27: 3000 | K27: 5000 | L27: 10000 | M27: 20000
F30: Tarifas Anuales
F31: Prima de Titular : | H31: n/a | I31: =VLOOKUP($M$16,Tablas!$A$140:$H$163,4,TRUE) -> 34833 | J31: =VLOOKUP($M$16,Tablas!$A$140:$H$163,5,TRUE) -> 24728 | K31: =VLOOKUP($M$16,Tablas!$A$140:$H$163,6,TRUE) -> 17247 | L31: =VLOOKUP($M$16,Tablas!$A$140:$H$163,7,TRUE) -> 14086 | M31: =VLOOKUP($M$16,Tablas!$A$140:$H$163,8,TRUE) -> 10765
F32: Prima de Cónyuge | H32: n/a | I32: =IF($J$16=1,0,(VLOOKUP($M$18,Tablas!$A$140:$H$163,4,TRUE))) -> 37067 | J32: =IF($J$16=1,0,(VLOOKUP($M$18,Tablas!$A$140:$H$163,5,TRUE))) -> 26314 | K32: =IF($J$16=1,0,(VLOOKUP($M$18,Tablas!$A$140:$H$163,6,TRUE))) -> 18348 | L32: =IF($J$16=1,0,(VLOOKUP($M$18,Tablas!$A$140:$H$163,7,TRUE))) -> 14989 | M32: =IF($J$16=1,0,(VLOOKUP($M$18,Tablas!$A$140:$H$163,8,TRUE))) -> 11461
F33: Primas Hijos : | H33: n/a | I33: =IF($J$18=0,0,(VLOOKUP($J$18,Tablas!$A$164:$H$166,4,TRUE))) -> 13582 | J33: =IF($J$18=0,0,(VLOOKUP($J$18,Tablas!$A$164:$H$166,5,TRUE))) -> 9928 | K33: =IF($J$18=0,0,(VLOOKUP($J$18,Tablas!$A$164:$H$166,6,TRUE))) -> 7190 | L33: =IF($J$18=0,0,(VLOOKUP($J$18,Tablas!$A$164:$H$166,7,TRUE))) -> 5993 | M33: =IF($J$18=0,0,(VLOOKUP($J$18,Tablas!$A$164:$H$166,8,TRUE))) -> 4449
F34: Prima Rider Complic. Maternidad | H34: n/a | I34: =+IF($I$20=FALSE,0,Tablas!D$167) -> 0 | J34: =+IF($I$20=FALSE,0,Tablas!E$167) -> 0 | K34: =+IF($I$20=FALSE,0,Tablas!F$167) -> 225 | L34: =+IF($I$20=FALSE,0,Tablas!G$167) -> 225 | M34: =+IF($I$20=FALSE,0,Tablas!H$167) -> 225
F35: TOTAL PRIMA NETA : | H35: n/a | I35: =SUM(I31:I34) -> 85482 | J35: =SUM(J31:J34) -> 60970 | K35: =SUM(K31:K34) -> 43010 | L35: =SUM(L31:L34) -> 35293 | M35: =SUM(M31:M34) -> 26900
F36: Costo Administrativo Anual : | H36: n/a | I36: 75 | J36: 75 | K36: 75 | L36: 75 | M36: 75
F37: GRAN TOTAL : | H37: n/a | I37: =SUM(I35:I36) -> 85557 | J37: =SUM(J35:J36) -> 61045 | K37: =SUM(K35:K36) -> 43085 | L37: =SUM(L35:L36) -> 35368 | M37: =SUM(M35:M36) -> 26975
F39: Tarifas Semestrales
F40: Prima de Titular : | H40: n/a | I40: =VLOOKUP($M$16,Tablas!$A$173:$H$196,4,TRUE) -> 18461.49 | J40: =VLOOKUP($M$16,Tablas!$A$173:$H$196,5,TRUE) -> 13105.84 | K40: =VLOOKUP($M$16,Tablas!$A$173:$H$196,6,TRUE) -> 9140.91 | L40: =VLOOKUP($M$16,Tablas!$A$173:$H$196,7,TRUE) -> 7465.58 | M40: =VLOOKUP($M$16,Tablas!$A$173:$H$196,8,TRUE) -> 5705.45
F41: Prima de Cónyuge | H41: n/a | I41: =IF($J$16=1,0,(VLOOKUP($M$18,Tablas!$A$173:$H$196,4,TRUE))) -> 19645.51 | J41: =IF($J$16=1,0,(VLOOKUP($M$18,Tablas!$A$173:$H$196,5,TRUE))) -> 13946.42 | K41: =IF($J$16=1,0,(VLOOKUP($M$18,Tablas!$A$173:$H$196,6,TRUE))) -> 9724.44 | L41: =IF($J$16=1,0,(VLOOKUP($M$18,Tablas!$A$173:$H$196,7,TRUE))) -> 7944.17 | M41: =IF($J$16=1,0,(VLOOKUP($M$18,Tablas!$A$173:$H$196,8,TRUE))) -> 6074.33
F42: Primas Hijos : | H42: n/a | I42: =IF($J$18=0,0,(VLOOKUP($J$18,Tablas!$A$197:$H$199,4,TRUE))) -> 7198.46 | J42: =IF($J$18=0,0,(VLOOKUP($J$18,Tablas!$A$197:$H$199,5,TRUE))) -> 5261.84 | K42: =IF($J$18=0,0,(VLOOKUP($J$18,Tablas!$A$197:$H$199,6,TRUE))) -> 3810.7 | L42: =IF($J$18=0,0,(VLOOKUP($J$18,Tablas!$A$197:$H$199,7,TRUE))) -> 3176.29 | M42: =IF($J$18=0,0,(VLOOKUP($J$18,Tablas!$A$197:$H$199,8,TRUE))) -> 2357.97
F43: Prima Rider Complic. Maternidad | H43: n/a | I43: =+IF($I$20=FALSE,0,Tablas!D$200) -> 0 | J43: =+IF($I$20=FALSE,0,Tablas!E$200) -> 0 | K43: =+IF($I$20=FALSE,0,Tablas!F$200) -> 119.25 | L43: =+IF($I$20=FALSE,0,Tablas!G$200) -> 119.25 | M43: =+IF($I$20=FALSE,0,Tablas!H$200) -> 119.25
F44: TOTAL PRIMA NETA : | H44: n/a | I44: =SUM(I40:I43) -> 45305.46 | J44: =SUM(J40:J43) -> 32314.1 | K44: =SUM(K40:K43) -> 22795.3 | L44: =SUM(L40:L43) -> 18705.29 | M44: =SUM(M40:M43) -> 14257
F45: Costo Administrativo Anual : | H45: n/a | I45: 75 | J45: 75 | K45: 75 | L45: 75 | M45: 75
F46: GRAN TOTAL (1ra Cuota) : | H46: n/a | I46: =SUM(I44:I45) -> 45380.46 | J46: =SUM(J44:J45) -> 32389.1 | K46: =SUM(K44:K45) -> 22870.3 | L46: =SUM(L44:L45) -> 18780.29 | M46: =SUM(M44:M45) -> 14332
F47: GRAN TOTAL (2da Cuota) : | H47: n/a | I47: =I44 -> 45305.46 | J47: =J44 -> 32314.1 | K47: 22795.3 | L47: 18705.29 | M47: 14257
F48: Tarifas en US $ - Válidas desde 01 enero 2023
F50: Este presupuesto solamente tiene carácter informativo y en ningún momento expresa compromiso legal para suministrarle cobertura de seguro. La emisión de una póliza de seguro Bupa está sujeta a todas las evaluaciones de riesgo por parte de Bupa y a la recepción de todos los pagos de prima requeridos.

Sheet Advantage (Mundial)
C10: Cotización de Seguro Médico Internacional - Bupa ADVANTAGE Care
H12: =+'INGRESO DE DATOS'!$D$12 -> NOMBRE COMPLETO
H14: =+'INGRESO DE DATOS'!$D$21 -> AGENCIA
J16: =+'INGRESO DE DATOS'!$G$14 -> 2 | M16: =+'INGRESO DE DATOS'!$G$16 -> 50
F17: FECHA DE COTIZACION :
F18: =NOW() -> 2023-08-16T10:35:00.180 | J18: =+'INGRESO DE DATOS'!$J$14 -> 5 | M18: =+'INGRESO DE DATOS'!$J$16 -> 55
I20: TRUE | K20: COMPLICACIONES DE MATERNIDAD
I22: TRUE | K22: TRASPLANTE DE ORGANOS
F25: Deducibles | H25: PLAN 1 | I25: PLAN 2 | J25: PLAN 3 | K25: PLAN 4 | L25: PLAN 5 | M25: PLAN 6
F26: Dentro del pais de residencia | H26: n/a | I26: 1000 | J26: 2000 | K26: 5000 | L26: 10000 | M26: 20000
F27: Fuera del pais de residencia | H27: n/a | I27: 2000 | J27: 3000 | K27: 5000 | L27: 10000 | M27: 20000
F30: Tarifas Anuales
F31: Prima de Titular : | H31: n/a | I31: =VLOOKUP($M$16,Tablas!$A$274:$H$297,4,TRUE) -> 23113 | J31: =VLOOKUP($M$16,Tablas!$A$274:$H$297,5,TRUE) -> 18149 | K31: =VLOOKUP($M$16,Tablas!$A$274:$H$297,6,TRUE) -> 13192 | L31: =VLOOKUP($M$16,Tablas!$A$274:$H$297,7,TRUE) -> 9759 | M31: =VLOOKUP($M$16,Tablas!$A$274:$H$297,8,TRUE) -> 7405
F32: Prima de Cónyuge | H32: n/a | I32: =IF($J$16=1,0,(VLOOKUP($M$18,Tablas!$A$274:$H$297,4,TRUE))) -> 27316 | J32: =IF($J$16=1,0,(VLOOKUP($M$18,Tablas!$A$274:$H$297,5,TRUE))) -> 20952 | K32: =IF($J$16=1,0,(VLOOKUP($M$18,Tablas!$A$274:$H$297,6,TRUE))) -> 14591 | L32: =IF($J$16=1,0,(VLOOKUP($M$18,Tablas!$A$274:$H$297,7,TRUE))) -> 11309 | M32: =IF($J$16=1,0,(VLOOKUP($M$18,Tablas!$A$274:$H$297,8,TRUE))) -> 8752
F33: Primas Hijos : | H33: n/a | I33: =IF($J$18=0,0,(VLOOKUP($J$18,Tablas!$A$298:$H$300,4,TRUE))) -> 11960 | J33: =IF($J$18=0,0,(VLOOKUP($J$18,Tablas!$A$298:$H$300,5,TRUE))) -> 8212 | K33: =IF($J$18=0,0,(VLOOKUP($J$18,Tablas!$A$298:$H$300,6,TRUE))) -> 6044 | L33: =IF($J$18=0,0,(VLOOKUP($J$18,Tablas!$A$298:$H$300,7,TRUE))) -> 5249 | M33: =IF($J$18=0,0,(VLOOKUP($J$18,Tablas!$A$298:$H$300,8,TRUE))) -> 3690
F34: Prima Rider Complic. Maternidad | H34: n/a | I34: =+IF($I$20=FALSE,0,Tablas!D$301) -> 225 | J34: =+IF($I$20=FALSE,0,Tablas!E$301) -> 225 | K34: =+IF($I$20=FALSE,0,Tablas!F$301) -> 225 | L34: =+IF($I$20=FALSE,0,Tablas!G$301) -> 225 | M34: =+IF($I$20=FALSE,0,Tablas!H$301) -> 225
F35: Prima Rider Trasplante Organos | H35: n/a | I35: =IF($I$22=FALSE,0,Tablas!D$302) -> 300 | J35: =IF($I$22=FALSE,0,Tablas!E$302) -> 300 | K35: =IF($I$22=FALSE,0,Tablas!F$302) -> 300 | L35: =IF($I$22=FALSE,0,Tablas!G$302) -> 300 | M35: =IF($I$22=FALSE,0,Tablas!H$302) -> 300
F36: TOTAL PRIMA NETA : | H36: n/a | I36: =SUM(I31:I35) -> 62914 | J36: 47838 | K36: 34352 | L36: 26842 | M36: 20372
F37: Costo Administrativo Anual : | H37: n/a | I37: 75 | J37: 75 | K37: 75 | L37: 75 | M37: 75
F38: GRAN TOTAL : | H38: n/a | I38: =SUM(I36:I37) -> 62989 | J38: =SUM(J36:J37) -> 47913 | K38: =SUM(K36:K37) -> 34427 | L38: =SUM(L36:L37) -> 26917 | M38: =SUM(M36:M37) -> 20447
F40: Tarifas Semestrales
F41: Prima de Titular : | H41: n/a | I41: =VLOOKUP($M$16,Tablas!$A$307:$H$330,4,TRUE) -> 12249.89 | J41: =VLOOKUP($M$16,Tablas!$A$307:$H$330,5,TRUE) -> 9618.97 | K41: =VLOOKUP($M$16,Tablas!$A$307:$H$330,6,TRUE) -> 6991.76 | L41: =VLOOKUP($M$16,Tablas!$A$307:$H$330,7,TRUE) -> 5172.27 | M41: =VLOOKUP($M$16,Tablas!$A$307:$H$330,8,TRUE) -> 3924.65
F42: Prima de Cónyuge | H42: n/a | I42: =IF($J$16=1,0,(VLOOKUP($M$18,Tablas!$A$307:$H$330,4,TRUE))) -> 14477.48 | J42: =IF($J$16=1,0,(VLOOKUP($M$18,Tablas!$A$307:$H$330,5,TRUE))) -> 11104.56 | K42: =IF($J$16=1,0,(VLOOKUP($M$18,Tablas!$A$307:$H$330,6,TRUE))) -> 7733.23 | L42: =IF($J$16=1,0,(VLOOKUP($M$18,Tablas!$A$307:$H$330,7,TRUE))) -> 5993.77 | M42: =IF($J$16=1,0,(VLOOKUP($M$18,Tablas!$A$307:$H$330,8,TRUE))) -> 4638.56
F43: Primas Hijos : | H43: n/a | I43: =IF($J$18=0,0,(VLOOKUP($J$18,Tablas!$A$331:$H$333,4,TRUE))) -> 6338.8 | J43: =IF($J$18=0,0,(VLOOKUP($J$18,Tablas!$A$331:$H$333,5,TRUE))) -> 4352.36 | K43: =IF($J$18=0,0,(VLOOKUP($J$18,Tablas!$A$331:$H$333,6,TRUE))) -> 3203.32 | L43: =IF($J$18=0,0,(VLOOKUP($J$18,Tablas!$A$331:$H$333,7,TRUE))) -> 2781.97 | M43: =IF($J$18=0,0,(VLOOKUP($J$18,Tablas!$A$331:$H$333,8,TRUE))) -> 1955.7
F44: Prima Rider Complic. Maternidad | H44: n/a | I44: =+IF($I$20=FALSE,0,Tablas!D$334) -> 119.25 | J44: =+IF($I$20=FALSE,0,Tablas!E$334) -> 119.25 | K44: =+IF($I$20=FALSE,0,Tablas!F$334) -> 119.25 | L44: =+IF($I$20=FALSE,0,Tablas!G$334) -> 119.25 | M44: =+IF($I$20=FALSE,0,Tablas!H$334) -> 119.25
F45: Prima Rider Trasplante Organos | H45: n/a | I45: =IF($I$22=FALSE,0,Tablas!D$335) -> 159 | J45: =IF($I$22=FALSE,0,Tablas!E$335) -> 159 | K45: =IF($I$22=FALSE,0,Tablas!F$335) -> 159 | L45: =IF($I$22=FALSE,0,Tablas!G$335) -> 159 | M45: =IF($I$22=FALSE,0,Tablas!H$335) -> 159
F46: TOTAL PRIMA NETA : | H46: n/a | I46: =SUM(I41:I45) -> 33344.42 | J46: 25354.14 | K46: 18206.56 | L46: 14226.26 | M46: 10797.16
F47: Costo Administrativo Anual : | H47: n/a | I47: 75 | J47: 75 | K47: 75 | L47: 75 | M47: 75
F48: GRAN TOTAL (1ra Cuota) : | H48: n/a | I48: =SUM(I46:I47) -> 33419.42 | J48: =SUM(J46:J47) -> 25429.14 | K48: =SUM(K46:K47) -> 18281.56 | L48: =SUM(L46:L47) -> 14301.26 | M48: =SUM(M46:M47) -> 10872.16
F49: GRAN TOTAL (2da Cuota) : | H49: n/a | I49: =I46 -> 33344.42 | J49: =J46 -> 25354.14 | K49: 18206.56 | L49: 14226.26 | M49: 10797.16
F50: Tarifas en US $ - Válidas desde 01 enero 2023
F52: Este presupuesto solamente tiene carácter informativo y en ningún momento expresa compromiso legal para suministrarle cobertura de seguro. La emisión de una póliza de seguro Bupa está sujeta a todas las evaluaciones de riesgo por parte de Bupa y a la recepción de todos los pagos de prima requeridos.

Sheet Advantage (LA) (hidden)
A10: Cotización de Seguro Médico Internacional - Bupa ADVANTAGE Care (cobertura solo Latinoamérica)
A12: Bupa Advantage Care (cobertura solo en Latinoamérica) | H12: =+'INGRESO DE DATOS'!$D$12 -> NOMBRE COMPLETO
A13: Cobertura Máxima anual | C13: US $ 3,500,000
A14: Cobertura Geografica | C14: Limitada a Latinoamérica excluyendo México | H14: =+'INGRESO DE DATOS'!$D$21 -> AGENCIA
A15: Condiciones médicas cubiertas | C15: Todas las condiciones médicas
A16: Redes de proveedores | C16: Red de Proveedores "Bupa Advantage" | J16: =+'INGRESO DE DATOS'!$G$14 -> 2 | M16: =+'INGRESO DE DATOS'!$G$16 -> 50
A17: Opciones fuera de la Red | C17: NO, solo en casos de emergencia | F17: FECHA DE COTIZACION :
A18: Requiere preautorización | C18: SI, 30% de penalización por omitir prenotificación | F18: =NOW() -> 2023-08-16T10:35:00.180 | J18: =+'INGRESO DE DATOS'!$J$14 -> 5 | M18: =+'INGRESO DE DATOS'!$J$16 -> 55
A20: Número máximo de días de hospitalización | C20: Ilimitado | I20: TRUE | K20: COMPLICACIONES DE MATERNIDAD
A21: Habitación y alimentación | C21: 100% dentro de Red Bupa
C22: "UCR" para L.A. en emergencias fuera de Red Bupa | I22: TRUE | K22: TRASPLANTE DE ORGANOS
A23: Cuidados Intensivos | C23: 100% dentro de Red Bupa
C24: "UCR" para L.A. en emergencias fuera de Red Bupa
A25: Cobertura de Maternidad | C25: $5,000 (Excepto planes 4,5, y 6) | F25: Deducibles | H25: PLAN 1 | I25: PLAN 2 | J25: PLAN 3 | K25: PLAN 4 | L25: PLAN 5 | M25: PLAN 6
A26: Cobertura Provisional de Recién Nacido | C26: $30,000 por los primeros 90 días | F26: Dentro del pais de residencia | H26: n/a | I26: 1000 | J26: 2000 | K26: 5000 | L26: 10000 | M26: 20000
A27: Cuidado del Recién Nacido saludable | C27: Ya incluída dentro del beneficio de Maternidad | F27: Fuera del pais de residencia | H27: n/a | I27: 2000 | J27: 3000 | K27: 5000 | L27: 10000 | M27: 20000
A28: Cobertura de Complicaciones de Maternidad | C28: Disponible a través de cobertura opcional adicional
A29: Trasplante de Organos | C29: $1,000,000 de por vida, por diagnóstico
A30: Condiciones congénitas y hereditarias | C30: <18 años $300,000 de por vida; >=18 al 100% | F30: Tarifas Anuales
A31: Coberturas opcionales (Riders) | C31: Complicaciones de Maternidad por $500,000 | F31: Prima de Titular : | H31: n/a | I31: =VLOOKUP($M$16,Tablas!$A$341:$H$364,4,TRUE) -> 23095 | J31: =VLOOKUP($M$16,Tablas!$A$341:$H$364,5,TRUE) -> 18131 | K31: =VLOOKUP($M$16,Tablas!$A$341:$H$364,6,TRUE) -> 13196 | L31: =VLOOKUP($M$16,Tablas!$A$341:$H$364,7,TRUE) -> 9747 | M31: =VLOOKUP($M$16,Tablas!$A$341:$H$364,8,TRUE) -> 7397
C32: Trasplante de órganos por $ 300,000 adicionales | F32: Prima de Cónyuge | H32: n/a | I32: =IF($J$16=1,0,(VLOOKUP($M$18,Tablas!$A$341:$H$364,4,TRUE))) -> 27290 | J32: =IF($J$16=1,0,(VLOOKUP($M$18,Tablas!$A$341:$H$364,5,TRUE))) -> 20932 | K32: =IF($J$16=1,0,(VLOOKUP($M$18,Tablas!$A$341:$H$364,6,TRUE))) -> 14596 | L32: =IF($J$16=1,0,(VLOOKUP($M$18,Tablas!$A$341:$H$364,7,TRUE))) -> 11305 | M32: =IF($J$16=1,0,(VLOOKUP($M$18,Tablas!$A$341:$H$364,8,TRUE))) -> 8747
A33: Acompañamiento de menores hospitalizados | C33: $300 por día | F33: Primas Hijos : | H33: n/a | I33: =IF($J$18=0,0,(VLOOKUP($J$18,Tablas!$A$365:$H$367,4,TRUE))) -> 11967 | J33: =IF($J$18=0,0,(VLOOKUP($J$18,Tablas!$A$365:$H$367,5,TRUE))) -> 8220 | K33: =IF($J$18=0,0,(VLOOKUP($J$18,Tablas!$A$365:$H$367,6,TRUE))) -> 6057 | L33: =IF($J$18=0,0,(VLOOKUP($J$18,Tablas!$A$365:$H$367,7,TRUE))) -> 5241 | M33: =IF($J$18=0,0,(VLOOKUP($J$18,Tablas!$A$365:$H$367,8,TRUE))) -> 3690
A34: Ambulancia aérea | C34: $100,000 por año y ticket aéreo de retorno | F34: Prima Rider Complic. Maternidad | H34: n/a | I34: =+IF($I$20=FALSE,0,Tablas!D$368) -> 0 | J34: =+IF($I$20=FALSE,0,Tablas!E$368) -> 0 | K34: =+IF($I$20=FALSE,0,Tablas!F$368) -> 0 | L34: =+IF($I$20=FALSE,0,Tablas!G$368) -> 0 | M34: =+IF($I$20=FALSE,0,Tablas!H$368) -> 0
A35: Repatriación restos mortales | C35: 1 | F35: Prima Rider Trasplante Organos | H35: n/a | I35: =IF($I$22=FALSE,0,Tablas!D$369) -> 0 | J35: =IF($I$22=FALSE,0,Tablas!E$369) -> 0 | K35: =IF($I$22=FALSE,0,Tablas!F$369) -> 0 | L35: =IF($I$22=FALSE,0,Tablas!G$369) -> 0 | M35: =IF($I$22=FALSE,0,Tablas!H$369) -> 0
A36: Medicamentos por receta | C36: $6,000 por Asegurado, por año póliza | F36: TOTAL PRIMA NETA : | H36: n/a | I36: =SUM(I31:I35) -> 62352 | J36: 47283 | K36: 33849 | L36: 26293 | M36: 19834
A37: Almacenamiento de sangre de cordon umbilical | C37: $500 (Excepto planes 4,5, y 6) | F37: Costo Administrativo Anual : | H37: n/a | I37: 75 | J37: 75 | K37: 75 | L37: 75 | M37: 75
F38: GRAN TOTAL : | H38: n/a | I38: =SUM(I36:I37) -> 62427 | J38: =SUM(J36:J37) -> 47358 | K38: =SUM(K36:K37) -> 33924 | L38: =SUM(L36:L37) -> 26368 | M38: =SUM(M36:M37) -> 19909
A39: Atención médica en el hogar | C39: 100% de usual/acostumbrado y razonable
A40: Rehabilitación | C40: 100% de usual/acostumbrado y razonable | F40: Tarifas Semestrales
A41: Residencia y cuidados paliativos | C41: 100% de usual/acostumbrado y razonable | F41: Prima de Titular : | H41: n/a | I41: =VLOOKUP($M$16,Tablas!$A$374:$H$397,4,TRUE) -> 12240.35 | J41: =VLOOKUP($M$16,Tablas!$A$374:$H$397,5,TRUE) -> 9609.43 | K41: =VLOOKUP($M$16,Tablas!$A$374:$H$397,6,TRUE) -> 6993.88 | L41: =VLOOKUP($M$16,Tablas!$A$374:$H$397,7,TRUE) -> 5165.91 | M41: =VLOOKUP($M$16,Tablas!$A$374:$H$397,8,TRUE) -> 3920.41
A42: Cobertura de actividades peligrosas | C42: 1 | F42: Prima de Cónyuge | H42: n/a | I42: =IF($J$16=1,0,(VLOOKUP($M$18,Tablas!$A$374:$H$397,4,TRUE))) -> 14463.7 | J42: =IF($J$16=1,0,(VLOOKUP($M$18,Tablas!$A$374:$H$397,5,TRUE))) -> 11093.96 | K42: =IF($J$16=1,0,(VLOOKUP($M$18,Tablas!$A$374:$H$397,6,TRUE))) -> 7735.88 | L42: =IF($J$16=1,0,(VLOOKUP($M$18,Tablas!$A$374:$H$397,7,TRUE))) -> 5991.65 | M42: =IF($J$16=1,0,(VLOOKUP($M$18,Tablas!$A$374:$H$397,8,TRUE))) -> 4635.91
A43: Chequeos generales de rutina | C43: Hasta US$150 por año póliza.Sin deducible | F43: Primas Hijos : | H43: n/a | I43: =IF($J$18=0,0,(VLOOKUP($J$18,Tablas!$A$398:$H$400,4,TRUE))) -> 6342.51 | J43: =IF($J$18=0,0,(VLOOKUP($J$18,Tablas!$A$398:$H$400,5,TRUE))) -> 4356.6 | K43: =IF($J$18=0,0,(VLOOKUP($J$18,Tablas!$A$398:$H$400,6,TRUE))) -> 3210.21 | L43: =IF($J$18=0,0,(VLOOKUP($J$18,Tablas!$A$398:$H$400,7,TRUE))) -> 2777.73 | M43: =IF($J$18=0,0,(VLOOKUP($J$18,Tablas!$A$398:$H$400,8,TRUE))) -> 1955.7
A44: Cobertura de VIH, SIDA, CAS | C44: Solo como efecto de transfusión de sangre | F44: Prima Rider Complic. Maternidad | H44: n/a | I44: =+IF($I$20=FALSE,0,Tablas!D$401) -> 0 | J44: =+IF($I$20=FALSE,0,Tablas!E$401) -> 0 | K44: =+IF($I$20=FALSE,0,Tablas!F$401) -> 0 | L44: =+IF($I$20=FALSE,0,Tablas!G$401) -> 0 | M44: =+IF($I$20=FALSE,0,Tablas!H$401) -> 0
A45: Cobertura de brazos y piernas artificiales | C45: $30,000 por año y hasta $120,000 de por vida | F45: Prima Rider Trasplante Organos | H45: n/a | I45: =IF($I$22=FALSE,0,Tablas!D$402) -> 0 | J45: =IF($I$22=FALSE,0,Tablas!E$402) -> 0 | K45: =IF($I$22=FALSE,0,Tablas!F$402) -> 0 | L45: =IF($I$22=FALSE,0,Tablas!G$402) -> 0 | M45: =IF($I$22=FALSE,0,Tablas!H$402) -> 0
A46: Cobertura extendida para dependientes en caso de muerte de asegurado principal | C46: 2 años sin costo | F46: TOTAL PRIMA NETA : | H46: n/a | I46: =SUM(I41:I45) -> 33046.56 | J46: 25059.99 | K46: 17939.97 | L46: 13935.29 | M46: 10512.02
F47: Costo Administrativo Anual : | H47: n/a | I47: 75 | J47: 75 | K47: 75 | L47: 75 | M47: 75
F48: GRAN TOTAL (1ra Cuota) : | H48: n/a | I48: =SUM(I46:I47) -> 33121.56 | J48: =SUM(J46:J47) -> 25134.99 | K48: =SUM(K46:K47) -> 18014.97 | L48: =SUM(L46:L47) -> 14010.29 | M48: =SUM(M46:M47) -> 10587.02
F49: GRAN TOTAL (2da Cuota) : | H49: n/a | I49: =I46 -> 33046.56 | J49: =J46 -> 25059.99 | K49: 17939.97 | L49: 13935.29 | M49: 10512.02
F50: Tarifas en US $ - Válidas desde 01 Ene 2013

Sheet Secure
C10: Cotización de Seguro Médico Internacional - Bupa SECURE Care
H12: =+'INGRESO DE DATOS'!$D$12 -> NOMBRE COMPLETO
H14: =+'INGRESO DE DATOS'!$D$21 -> AGENCIA
J16: =+'INGRESO DE DATOS'!$G$14 -> 2 | M16: =+'INGRESO DE DATOS'!$G$16 -> 50
F17: FECHA DE COTIZACION :
F18: =NOW() -> 2023-08-16T10:35:00.180 | J18: =+'INGRESO DE DATOS'!$J$14 -> 5 | M18: =+'INGRESO DE DATOS'!$J$16 -> 55
I20: TRUE | K20: COMPLICACIONES DE MATERNIDAD
I22: TRUE | K22: TRASPLANTE DE ORGANOS
F25: Deducibles | H25: PLAN 1 | I25: PLAN 2 | J25: PLAN 3 | K25: PLAN 4 | L25: PLAN 5 | M25: PLAN 6
F26: Dentro del pais de residencia | H26: n/a | I26: 1000 | J26: 2000 | K26: 5000 | L26: 10000 | M26: 20000
F27: Fuera del pais de residencia | H27: n/a | I27: 2000 | J27: 3000 | K27: 5000 | L27: 10000 | M27: 20000
F30: Tarifas Anuales
F31: Prima de Titular : | H31: n/a | I31: =VLOOKUP($M$16,Tablas!$A$408:$H$431,4,TRUE) -> 17040 | J31: =VLOOKUP($M$16,Tablas!$A$408:$H$431,5,TRUE) -> 14871 | K31: =VLOOKUP($M$16,Tablas!$A$408:$H$431,6,TRUE) -> 10199 | L31: =VLOOKUP($M$16,Tablas!$A$408:$H$431,7,TRUE) -> 8728 | M31: =VLOOKUP($M$16,Tablas!$A$408:$H$431,8,TRUE) -> 6541
F32: Prima de Cónyuge | H32: n/a | I32: =IF($J$16=1,0,(VLOOKUP($M$18,Tablas!$A$408:$H$431,4,TRUE))) -> 20026 | J32: =IF($J$16=1,0,(VLOOKUP($M$18,Tablas!$A$408:$H$431,5,TRUE))) -> 17754 | K32: =IF($J$16=1,0,(VLOOKUP($M$18,Tablas!$A$408:$H$431,6,TRUE))) -> 12083 | L32: =IF($J$16=1,0,(VLOOKUP($M$18,Tablas!$A$408:$H$431,7,TRUE))) -> 10335 | M32: =IF($J$16=1,0,(VLOOKUP($M$18,Tablas!$A$408:$H$431,8,TRUE))) -> 7728
F33: Primas Hijos : | H33: n/a | I33: =IF($J$18=0,0,(VLOOKUP($J$18,Tablas!$A$432:$H$434,4,TRUE))) -> 10391 | J33: =IF($J$18=0,0,(VLOOKUP($J$18,Tablas!$A$432:$H$434,5,TRUE))) -> 5294 | K33: =IF($J$18=0,0,(VLOOKUP($J$18,Tablas!$A$432:$H$434,6,TRUE))) -> 4527 | L33: =IF($J$18=0,0,(VLOOKUP($J$18,Tablas!$A$432:$H$434,7,TRUE))) -> 3865 | M33: =IF($J$18=0,0,(VLOOKUP($J$18,Tablas!$A$432:$H$434,8,TRUE))) -> 2860
F34: Prima Rider Complic. Maternidad | H34: n/a | I34: =+IF($I$20=FALSE,0,Tablas!D$435) -> 225 | J34: =+IF($I$20=FALSE,0,Tablas!E$435) -> 225 | K34: =+IF($I$20=FALSE,0,Tablas!F$435) -> 225 | L34: =+IF($I$20=FALSE,0,Tablas!G$435) -> 225 | M34: =+IF($I$20=FALSE,0,Tablas!H$435) -> 225
F35: Prima Rider Trasplante Organos | H35: n/a | I35: =IF($I$22=FALSE,0,Tablas!D$436) -> 300 | J35: =IF($I$22=FALSE,0,Tablas!E$436) -> 300 | K35: =IF($I$22=FALSE,0,Tablas!F$436) -> 300 | L35: =IF($I$22=FALSE,0,Tablas!G$436) -> 300 | M35: =IF($I$22=FALSE,0,Tablas!H$436) -> 300
F36: TOTAL PRIMA NETA : | H36: n/a | I36: =SUM(I31:I35) -> 47982 | J36: 38444 | K36: 27334 | L36: 23453 | M36: 17654
F37: Costo Administrativo Anual : | H37: n/a | I37: 75 | J37: 75 | K37: 75 | L37: 75 | M37: 75
F38: GRAN TOTAL : | H38: n/a | I38: =SUM(I36:I37) -> 48057 | J38: =SUM(J36:J37) -> 38519 | K38: =SUM(K36:K37) -> 27409 | L38: =SUM(L36:L37) -> 23528 | M38: =SUM(M36:M37) -> 17729
F40: Tarifas Semestrales
F41: Prima de Titular : | H41: n/a | I41: =VLOOKUP($M$16,Tablas!$A$441:$H$464,4,TRUE) -> 9031.2 | J41: =VLOOKUP($M$16,Tablas!$A$441:$H$464,5,TRUE) -> 7881.63 | K41: =VLOOKUP($M$16,Tablas!$A$441:$H$464,6,TRUE) -> 5405.47 | L41: =VLOOKUP($M$16,Tablas!$A$441:$H$464,7,TRUE) -> 4625.84 | M41: =VLOOKUP($M$16,Tablas!$A$441:$H$464,8,TRUE) -> 3466.73
F42: Prima de Cónyuge | H42: n/a | I42: =IF($J$16=1,0,(VLOOKUP($M$18,Tablas!$A$441:$H$464,4,TRUE))) -> 10613.78 | J42: =IF($J$16=1,0,(VLOOKUP($M$18,Tablas!$A$441:$H$464,5,TRUE))) -> 9409.62 | K42: =IF($J$16=1,0,(VLOOKUP($M$18,Tablas!$A$441:$H$464,6,TRUE))) -> 6403.99 | L42: =IF($J$16=1,0,(VLOOKUP($M$18,Tablas!$A$441:$H$464,7,TRUE))) -> 5477.55 | M42: =IF($J$16=1,0,(VLOOKUP($M$18,Tablas!$A$441:$H$464,8,TRUE))) -> 4095.84
F43: Primas Hijos : | H43: n/a | I43: =IF($J$18=0,0,(VLOOKUP($J$18,Tablas!$A$465:$H$467,4,TRUE))) -> 5507.23 | J43: =IF($J$18=0,0,(VLOOKUP($J$18,Tablas!$A$465:$H$467,5,TRUE))) -> 2805.82 | K43: =IF($J$18=0,0,(VLOOKUP($J$18,Tablas!$A$465:$H$467,6,TRUE))) -> 2399.31 | L43: =IF($J$18=0,0,(VLOOKUP($J$18,Tablas!$A$465:$H$467,7,TRUE))) -> 2048.45 | M43: =IF($J$18=0,0,(VLOOKUP($J$18,Tablas!$A$465:$H$467,8,TRUE))) -> 1515.8
F44: Prima Rider Complic. Maternidad | H44: n/a | I44: =+IF($I$20=FALSE,0,Tablas!D$468) -> 119.25 | J44: =+IF($I$20=FALSE,0,Tablas!E$468) -> 119.25 | K44: =+IF($I$20=FALSE,0,Tablas!F$468) -> 119.25 | L44: =+IF($I$20=FALSE,0,Tablas!G$468) -> 119.25 | M44: =+IF($I$20=FALSE,0,Tablas!H$468) -> 119.25
F45: Prima Rider Trasplante Organos | H45: n/a | I45: =IF($I$22=FALSE,0,Tablas!D$469) -> 159 | J45: =IF($I$22=FALSE,0,Tablas!E$469) -> 159 | K45: =IF($I$22=FALSE,0,Tablas!F$469) -> 159 | L45: =IF($I$22=FALSE,0,Tablas!G$469) -> 159 | M45: =IF($I$22=FALSE,0,Tablas!H$469) -> 159
F46: TOTAL PRIMA NETA : | H46: n/a | I46: =SUM(I41:I45) -> 25430.46 | J46: 20375.32 | K46: 14487.02 | L46: 12430.09 | M46: 9356.62
F47: Costo Administrativo Anual : | H47: n/a | I47: 75 | J47: 75 | K47: 75 | L47: 75 | M47: 75
F48: GRAN TOTAL (1ra Cuota) : | H48: n/a | I48: =SUM(I46:I47) -> 25505.46 | J48: =SUM(J46:J47) -> 20450.32 | K48: =SUM(K46:K47) -> 14562.02 | L48: =SUM(L46:L47) -> 12505.09 | M48: =SUM(M46:M47) -> 9431.62
F49: GRAN TOTAL (2da Cuota) : | H49: n/a | I49: =I46 -> 25430.46 | J49: =J46 -> 20375.32 | K49: 14487.02 | L49: 12430.09 | M49: 9356.62
F50: Tarifas en US $ - Válidas desde 01 enero 2023
F52: Este presupuesto solamente tiene carácter informativo y en ningún momento expresa compromiso legal para suministrarle cobertura de seguro. La emisión de una póliza de seguro Bupa está sujeta a todas las evaluaciones de riesgo por parte de Bupa y a la recepción de todos los pagos de prima requeridos.

Sheet Essential
C10: Cotización de Seguro Médico Internacional - Bupa ESSENTIAL Care
H12: =+'INGRESO DE DATOS'!$D$12 -> NOMBRE COMPLETO
H14: =+'INGRESO DE DATOS'!$D$21 -> AGENCIA
J16: =+'INGRESO DE DATOS'!$G$14 -> 2 | M16: =+'INGRESO DE DATOS'!$G$16 -> 50
F17: FECHA DE COTIZACION :
F18: =NOW() -> 2023-08-16T10:35:00.180 | J18: =+'INGRESO DE DATOS'!$J$14 -> 5 | M18: =+'INGRESO DE DATOS'!$J$16 -> 55
I20: TRUE | K20: COMPLICACIONES DE MATERNIDAD
I22: TRUE | K22: TRASPLANTE DE ORGANOS
F25: Deducibles | H25: PLAN 1 | I25: PLAN 2 | J25: PLAN 3 | K25: PLAN 4 | L25: PLAN 5 | M25: PLAN 6
F26: Dentro del pais de residencia | H26: n/a | I26: 1000 | J26: 2000 | K26: 5000 | L26: 10000 | M26: 20000
F27: Fuera del pais de residencia | H27: n/a | I27: 2000 | J27: 3000 | K27: 5000 | L27: 10000 | M27: 20000
F30: Tarifas Anuales
F31: Prima de Titular : | H31: n/a | I31: =VLOOKUP($M$16,Tablas!$A$475:$H$498,4,TRUE) -> 14093 | J31: =VLOOKUP($M$16,Tablas!$A$475:$H$498,5,TRUE) -> 12304 | K31: =VLOOKUP($M$16,Tablas!$A$475:$H$498,6,TRUE) -> 8428 | L31: =VLOOKUP($M$16,Tablas!$A$475:$H$498,7,TRUE) -> 7210 | M31: =VLOOKUP($M$16,Tablas!$A$475:$H$498,8,TRUE) -> 5408
F32: Prima de Cónyuge | H32: n/a | I32: =IF($J$16=1,0,(VLOOKUP($M$18,Tablas!$A$475:$H$498,4,TRUE))) -> 16571 | J32: =IF($J$16=1,0,(VLOOKUP($M$18,Tablas!$A$475:$H$498,5,TRUE))) -> 14694 | K32: =IF($J$16=1,0,(VLOOKUP($M$18,Tablas!$A$475:$H$498,6,TRUE))) -> 9995 | L32: =IF($J$16=1,0,(VLOOKUP($M$18,Tablas!$A$475:$H$498,7,TRUE))) -> 8558 | M32: =IF($J$16=1,0,(VLOOKUP($M$18,Tablas!$A$475:$H$498,8,TRUE))) -> 6393
F33: Primas Hijos : | H33: n/a | I33: =IF($J$18=0,0,(VLOOKUP($J$18,Tablas!$A$499:$H$501,4,TRUE))) -> 8610 | J33: =IF($J$18=0,0,(VLOOKUP($J$18,Tablas!$A$499:$H$501,5,TRUE))) -> 4386 | K33: =IF($J$18=0,0,(VLOOKUP($J$18,Tablas!$A$499:$H$501,6,TRUE))) -> 3753 | L33: =IF($J$18=0,0,(VLOOKUP($J$18,Tablas!$A$499:$H$501,7,TRUE))) -> 3202 | M33: =IF($J$18=0,0,(VLOOKUP($J$18,Tablas!$A$499:$H$501,8,TRUE))) -> 2368
F34: Prima Rider Complic. Maternidad | H34: n/a | I34: =+IF($I$20=FALSE,0,Tablas!D$502) -> 225 | J34: =+IF($I$20=FALSE,0,Tablas!E$502) -> 225 | K34: =+IF($I$20=FALSE,0,Tablas!F$502) -> 225 | L34: =+IF($I$20=FALSE,0,Tablas!G$502) -> 225 | M34: =+IF($I$20=FALSE,0,Tablas!H$502) -> 225
F35: Prima Rider Trasplante Organos | H35: n/a | I35: =IF($I$22=FALSE,0,Tablas!D$503) -> 300 | J35: =IF($I$22=FALSE,0,Tablas!E$503) -> 300 | K35: =IF($I$22=FALSE,0,Tablas!F$503) -> 300 | L35: =IF($I$22=FALSE,0,Tablas!G$503) -> 300 | M35: =IF($I$22=FALSE,0,Tablas!H$503) -> 300
F36: TOTAL PRIMA NETA : | H36: n/a | I36: =SUM(I31:I35) -> 39799 | J36: 31909 | K36: 22701 | L36: 19495 | M36: 14694
F37: Costo Administrativo Anual : | H37: n/a | I37: 75 | J37: 75 | K37: 75 | L37: 75 | M37: 75
F38: GRAN TOTAL : | H38: n/a | I38: =SUM(I36:I37) -> 39874 | J38: =SUM(J36:J37) -> 31984 | K38: =SUM(K36:K37) -> 22776 | L38: =SUM(L36:L37) -> 19570 | M38: =SUM(M36:M37) -> 14769
F40: Tarifas Semestrales
F41: Prima de Titular : | H41: n/a | I41: =VLOOKUP($M$16,Tablas!$A$508:$H$531,4,TRUE) -> 7469.29 | J41: =VLOOKUP($M$16,Tablas!$A$508:$H$531,5,TRUE) -> 6521.12 | K41: =VLOOKUP($M$16,Tablas!$A$508:$H$531,6,TRUE) -> 4466.84 | L41: =VLOOKUP($M$16,Tablas!$A$508:$H$531,7,TRUE) -> 3821.3 | M41: =VLOOKUP($M$16,Tablas!$A$508:$H$531,8,TRUE) -> 2866.24
F42: Prima de Cónyuge | H42: n/a | I42: =IF($J$16=1,0,(VLOOKUP($M$18,Tablas!$A$508:$H$531,4,TRUE))) -> 8782.63 | J42: =IF($J$16=1,0,(VLOOKUP($M$18,Tablas!$A$508:$H$531,5,TRUE))) -> 7787.82 | K42: =IF($J$16=1,0,(VLOOKUP($M$18,Tablas!$A$508:$H$531,6,TRUE))) -> 5297.35 | L42: =IF($J$16=1,0,(VLOOKUP($M$18,Tablas!$A$508:$H$531,7,TRUE))) -> 4535.74 | M42: =IF($J$16=1,0,(VLOOKUP($M$18,Tablas!$A$508:$H$531,8,TRUE))) -> 3388.29
F43: Primas Hijos : | H43: n/a | I43: =IF($J$18=0,0,(VLOOKUP($J$18,Tablas!$A$532:$H$534,4,TRUE))) -> 4563.3 | J43: =IF($J$18=0,0,(VLOOKUP($J$18,Tablas!$A$532:$H$534,5,TRUE))) -> 2324.58 | K43: =IF($J$18=0,0,(VLOOKUP($J$18,Tablas!$A$532:$H$534,6,TRUE))) -> 1989.09 | L43: =IF($J$18=0,0,(VLOOKUP($J$18,Tablas!$A$532:$H$534,7,TRUE))) -> 1697.06 | M43: =IF($J$18=0,0,(VLOOKUP($J$18,Tablas!$A$532:$H$534,8,TRUE))) -> 1255.04
F44: Prima Rider Complic. Maternidad | H44: n/a | I44: =+IF($I$20=FALSE,0,Tablas!D$535) -> 119.25 | J44: =+IF($I$20=FALSE,0,Tablas!E$535) -> 119.25 | K44: =+IF($I$20=FALSE,0,Tablas!F$535) -> 119.25 | L44: =+IF($I$20=FALSE,0,Tablas!G$535) -> 119.25 | M44: =+IF($I$20=FALSE,0,Tablas!H$535) -> 119.25
F45: Prima Rider Trasplante Organos | H45: n/a | I45: =IF($I$22=FALSE,0,Tablas!D$536) -> 159 | J45: =IF($I$22=FALSE,0,Tablas!E$536) -> 159 | K45: =IF($I$22=FALSE,0,Tablas!F$536) -> 159 | L45: =IF($I$22=FALSE,0,Tablas!G$536) -> 159 | M45: =IF($I$22=FALSE,0,Tablas!H$536) -> 159
F46: TOTAL PRIMA NETA : | H46: n/a | I46: =SUM(I41:I45) -> 21093.47 | J46: 16911.77 | K46: 12031.53 | L46: 10332.35 | M46: 7787.82
F47: Costo Administrativo Anual : | H47: n/a | I47: 75 | J47: 75 | K47: 75 | L47: 75 | M47: 75
F48: GRAN TOTAL (1ra Cuota) : | H48: n/a | I48: =SUM(I46:I47) -> 21168.47 | J48: =SUM(J46:J47) -> 16986.77 | K48: =SUM(K46:K47) -> 12106.53 | L48: =SUM(L46:L47) -> 10407.35 | M48: =SUM(M46:M47) -> 7862.82
F49: GRAN TOTAL (2da Cuota) : | H49: n/a | I49: =I46 -> 21093.47 | J49: =J46 -> 16911.77 | K49: 12031.53 | L49: 10332.35 | M49: 7787.82
F50: Tarifas en US $ - Válidas desde 01 enero 2023
F52: Este presupuesto solamente tiene carácter informativo y en ningún momento expresa compromiso legal para suministrarle cobertura de seguro. La emisión de una póliza de seguro Bupa está sujeta a todas las evaluaciones de riesgo por parte de Bupa y a la recepción de todos los pagos de prima requeridos.

Sheet Critical
C10: Cotización de Seguro Médico Internacional - Bupa CRITICAL Care
H12: =+'INGRESO DE DATOS'!$D$12 -> NOMBRE COMPLETO
H14: =+'INGRESO DE DATOS'!$D$21 -> AGENCIA
J16: =+'INGRESO DE DATOS'!$G$14 -> 2 | M16: =+'INGRESO DE DATOS'!$G$16 -> 50
F17: FECHA DE COTIZACION :
F18: =NOW() -> 2023-08-16T10:35:00.180 | J18: =+'INGRESO DE DATOS'!$J$14 -> 5 | M18: =+'INGRESO DE DATOS'!$J$16 -> 55
J20: TRUE | M20: =IF(M16>=M18,M16,M18) -> 55
F22: CONDICION CRITICA CUBIERTA | I22: MAXIMO POR AÑO POLIZA | K22: TRASPLANTE DE ORGANOS
F24: Enfermedades neurológicas y accidentes cerebro-vasculares | I24: 150000 | K24: Tipo de trasplante | M24: Máximo Vitalicio
I25: por asegurado por año póliza | M25: por persona
F26: Cirugías cardíacas y angioplastías | I26: 150000 | K26: Corazón | M26: 300000
I27: por asegurado por año póliza | K27: Corazón y Pulmón (simultáneamente) | M27: 300000
F28: Tratamiento de cáncer | I28: 200000 | K28: Pulmón | M28: 250000
I29: por asegurado por año póliza | K29: Pancreas | M29: 250000
F30: Trauma grave (Politraumatismos) | I30: 150000 | K30: Pancreas y Riñón (simultáneamente) | M30: 300000
I31: por asegurado por año póliza | K31: Riñón | M31: 200000
F32: Insuficiencia renal crónica (Diálisis) | I32: 100000 | K32: Hígado | M32: 200000
I33: por asegurado por año póliza | K33: Médula ósea | M33: 250000
F34: Quemaduras graves | I34: 300000 | K34: La cobertura de trasplante de órganos está limitada a la Red de Proveedores para Procedimiento de Trasplante de la Compañía y no se proporcionará cobertura en proveedores fuera de esta Red especializada.
I35: por asegurado por año póliza
F36: Desorden infeccioso grave (Septicemia) | I36: 150000
I37: por asegurado por año póliza
F39: Deducibles | H39: PLAN 1 | I39: PLAN 2 | J39: PLAN 3 | K39: PLAN 4 | L39: PLAN 5 | M39: PLAN 6
F40: Dentro del pais de residencia | H40: 2000 | I40: 3500 | J40: 5000 | K40: 10000 | L40: 20000 | M40: 50000
F41: Fuera del pais de residencia | H41: 2000 | I41: 3500 | J41: 5000 | K41: 10000 | L41: 20000 | M41: 50000
F43: Tarifas Anuales
F44: Prima por plan individual : | H44: =IF((($J$16+$J$18)=1),(VLOOKUP($M$20,Tablas!$A$543:$Q$544,3,TRUE)),0) -> 0 | I44: =IF((($J$16+$J$18)=1),(VLOOKUP($M$20,Tablas!$A$543:$Q$544,6,TRUE)),0) -> 0 | J44: =IF((($J$16+$J$18)=1),(VLOOKUP($M$20,Tablas!$A$543:$Q$544,9,TRUE)),0) -> 0 | K44: =IF((($J$16+$J$18)=1),(VLOOKUP($M$20,Tablas!$A$543:$Q$544,12,TRUE)),0) -> 0 | L44: =IF((($J$16+$J$18)=1),(VLOOKUP($M$20,Tablas!$A$543:$Q$544,15,TRUE)),0) -> 0 | M44: =IF((($J$16+$J$18)=1),(VLOOKUP($M$20,Tablas!$A$543:$Q$544,18,TRUE)),0) -> 0
F45: Prima por plan para 2 personas : | H45: =IF((($J$16+$J$18)=2),(VLOOKUP($M$20,Tablas!$A$543:$Q$544,4,TRUE)),0) -> 0 | I45: =IF((($J$16+$J$18)=2),(VLOOKUP($M$20,Tablas!$A$543:$Q$544,7,TRUE)),0) -> 0 | J45: =IF((($J$16+$J$18)=2),(VLOOKUP($M$20,Tablas!$A$543:$Q$544,10,TRUE)),0) -> 0 | K45: =IF((($J$16+$J$18)=2),(VLOOKUP($M$20,Tablas!$A$543:$Q$544,13,TRUE)),0) -> 0 | L45: =IF((($J$16+$J$18)=2),(VLOOKUP($M$20,Tablas!$A$543:$Q$544,16,TRUE)),0) -> 0 | M45: =IF((($J$16+$J$18)=2),(VLOOKUP($M$20,Tablas!$A$543:$Q$544,19,TRUE)),0) -> 0
F46: Prima por plan familiar : | H46: =IF((($J$16+$J$18)>=3),(VLOOKUP($M$20,Tablas!$A$543:$Q$544,5,TRUE)),0) -> 11616 | I46: =IF((($J$16+$J$18)>=3),(VLOOKUP($M$20,Tablas!$A$543:$Q$544,8,TRUE)),0) -> 9022 | J46: =IF((($J$16+$J$18)>=3),(VLOOKUP($M$20,Tablas!$A$543:$Q$544,11,TRUE)),0) -> 7744 | K46: =IF((($J$16+$J$18)>=3),(VLOOKUP($M$20,Tablas!$A$543:$Q$544,14,TRUE)),0) -> 5920 | L46: =IF((($J$16+$J$18)>=3),(VLOOKUP($M$20,Tablas!$A$543:$Q$544,17,TRUE)),0) -> 4178 | M46: =IF((($J$16+$J$18)>=3),(VLOOKUP($M$20,Tablas!$A$543:$Q$544,20,TRUE)),0) -> 
F47: TOTAL PRIMA NETA : | H47: =SUM(H44:H46) -> 11616 | I47: =SUM(I44:I46) -> 9022 | J47: 7744 | K47: 5920 | L47: 4178
F48: Costo Administrativo Anual : | H48: 75 | I48: 75 | J48: 75 | K48: 75 | L48: 75 | M48: 75
F49: GRAN TOTAL : | H49: =SUM(H47:H48) -> 11691 | I49: 9097 | J49: 7819 | K49: 5995 | L49: 4253
F50: Tarifas en US $ - Válidas desde 01 enero 2023
F53: Este presupuesto solamente tiene carácter informativo y en ningún momento expresa compromiso legal para suministrarle cobertura de seguro. La emisión de una póliza de seguro Bupa está sujeta a todas las evaluaciones de riesgo por parte de Bupa y a la recepción de todos los pagos de prima requeridos.

Sheet Resumen tarifas anuales
C12: Cotización de Seguro Médico Internacional - BUPA CARE
C14: =+'INGRESO DE DATOS'!$D$12 -> NOMBRE COMPLETO
C16: =+'INGRESO DE DATOS'!$D$21 -> AGENCIA
E18: =+'INGRESO DE DATOS'!$G$14 -> 2 | H18: =+'INGRESO DE DATOS'!$G$16 -> 50
A19: FECHA DE COTIZACION :
A20: =NOW() -> 2023-08-16T10:35:00.180 | E20: =+'INGRESO DE DATOS'!$J$14 -> 5 | H20: =+'INGRESO DE DATOS'!$J$16 -> 55
A22: Deducibles | C22: PLAN 1 | D22: PLAN 2 | E22: PLAN 3 | F22: PLAN 4 | G22: PLAN 5 | H22: PLAN 6
A23: Dentro del pais de residencia | C23: n/a | D23: 1000 | E23: 2000 | F23: 5000 | G23: 10000 | H23: 20000
A24: Fuera del pais de residencia | C24: n/a | D24: 2000 | E24: 3000 | F24: 5000 | G24: 10000 | H24: 20000
A26: PRODUCTOS | C26: Tarifas Anuales
A27: Bupa Exclusive Care | C27: n/a | D27: =+Exclusive!I37 -> 99836 | E27: =+Exclusive!J37 -> 70048 | F27: =+Exclusive!K37 -> 49739 | G27: =+Exclusive!L37 -> 40431 | H27: =+Exclusive!M37 -> 31806
A28: Bupa Privilege Care | C28: n/a | D28: =+Privilege!I37 -> 85557 | E28: =+Privilege!J37 -> 61045 | F28: =+Privilege!K37 -> 43085 | G28: =+Privilege!L37 -> 35368 | H28: =+Privilege!M37 -> 26975
A29: Bupa Advantage Care | C29: n/a | D29: =+'Advantage (Mundial)'!I38 -> 62989 | E29: =+'Advantage (Mundial)'!J38 -> 47913 | F29: =+'Advantage (Mundial)'!K38 -> 34427 | G29: =+'Advantage (Mundial)'!L38 -> 26917 | H29: =+'Advantage (Mundial)'!M38 -> 20447
A30: Bupa Secure Care | C30: n/a | D30: =+Secure!I38 -> 48057 | E30: =+Secure!J38 -> 38519 | F30: =+Secure!K38 -> 27409 | G30: =+Secure!L38 -> 23528 | H30: =+Secure!M38 -> 17729
A31: Bupa Essential Care | C31: n/a | D31: =+Essential!I38 -> 39874 | E31: =+Essential!J38 -> 31984 | F31: =+Essential!K38 -> 22776 | G31: =+Essential!L38 -> 19570 | H31: =+Essential!M38 -> 14769
A33: Deducibles | C33: PLAN 1 | D33: PLAN 2 | E33: PLAN 3 | F33: PLAN 4 | G33: PLAN 5 | H33: PLAN 6
A34: Dentro del pais de residencia | C34: 2000 | D34: 3500 | E34: 5000 | F34: 10000 | G34: 20000 | H34: 50000
A35: Fuera del pais de residencia | C35: 2000 | D35: 3500 | E35: 5000 | F35: 10000 | G35: 20000 | H35: 50000
C36: Tarifas Anuales
A37: Bupa Critical Care | C37: =+Critical!H49 -> 11691 | D37: =+Critical!I49 -> 9097 | E37: =+Critical!J49 -> 7819 | F37: =+Critical!K49 -> 5995 | G37: =+Critical!L49 -> 4253 | H37: =+Critical!M49 -> 
A38: Tarifas en US $ - Válidas desde 01 enero 2023
A40: Este presupuesto solamente tiene carácter informativo y en ningún momento expresa compromiso legal para suministrarle cobertura de seguro. La emisión de una póliza de seguro Bupa está sujeta a todas las evaluaciones de riesgo por parte de Bupa y a la recepción de todos los pagos de prima requeridos.

Sheet Comparacion de Beneficios
A1: 2023 BUPA CARE COMPARACION DE BENEFICIOS

Sheet Tablas (hidden)
A2: EXCLUSIVE | J2: FACTOR SEMESTRAL : | L2: 0.53
A3: TARIFAS ANUALES
A4: EDAD
D5: DW2 | E5: DW3 | F5: DW4 | G5: DW5 | H5: DW6 | J5: 2 | K5: 6 | L5: 10 | M5: 14 | N5: 18
A6: 18 | B6: 18-24 | D6: 19965 | E6: 13185 | F6: 8718 | G6: 6125 | H6: 4814 | J6: 0 | K6: 0 | L6: 0 | M6: 0 | N6: 0
A7: 25 | B7: 25-29 | D7: 20940 | E7: 14572 | F7: 9655 | G7: 6792 | H7: 5334 | J7: 0 | K7: 0 | L7: 0 | M7: 0 | N7: 0
A8: 30 | B8: 30-34 | D8: 21790 | E8: 15636 | F8: 10819 | G8: 8141 | H8: 6415 | J8: 0 | K8: 0 | L8: 0 | M8: 0 | N8: 0
A9: 35 | B9: 35-39 | D9: 24398 | E9: 17502 | F9: 12135 | G9: 9131 | H9: 7187 | J9: 0 | K9: 0 | L9: 0 | M9: 0 | N9: 0
A10: 40 | B10: 40-44 | D10: 28288 | E10: 19152 | F10: 13465 | G10: 10046 | H10: 7902 | J10: 0 | K10: 0 | L10: 0 | M10: 0 | N10: 0
A11: 45 | B11: 45-49 | D11: 31632 | E11: 21417 | F11: 15053 | G11: 11232 | H11: 8843 | J11: 0 | K11: 0 | L11: 0 | M11: 0 | N11: 0
A12: 50 | B12: 50-54 | D12: 40486 | E12: 28113 | F12: 19652 | G12: 15868 | H12: 12505 | J12: 0 | K12: 0 | L12: 0 | M12: 0 | N12: 0
A13: 55 | B13: 55-59 | D13: 43082 | E13: 29915 | F13: 20911 | G13: 16891 | H13: 13315 | J13: 0 | K13: 0 | L13: 0 | M13: 0 | N13: 0
A14: 60 | B14: 60 | D14: 46936 | E14: 32645 | F14: 24069 | G14: 20355 | H14: 16547 | J14: 0 | K14: 0 | L14: 0 | M14: 0 | N14: 0
A15: 61 | B15: 61 | D15: 50427 | E15: 35072 | F15: 25850 | G15: 21883 | H15: 17783 | J15: 0 | K15: 0 | L15: 0 | M15: 0 | N15: 0
A16: 62 | B16: 62 | D16: 55211 | E16: 38418 | F16: 28311 | G16: 23950 | H16: 19476 | J16: 0 | K16: 0 | L16: 0 | M16: 0 | N16: 0
A17: 63 | B17: 63 | D17: 58707 | E17: 40844 | F17: 30099 | G17: 25476 | H17: 20708 | J17: 0 | K17: 0 | L17: 0 | M17: 0 | N17: 0
A18: 64 | B18: 64 | D18: 63513 | E18: 44201 | F18: 32571 | G18: 27561 | H18: 22416 | J18: 0 | K18: 0 | L18: 0 | M18: 0 | N18: 0
A19: 65 | B19: 65 | D19: 83034 | E19: 57657 | F19: 41193 | G19: 36767 | H19: 31620 | J19: 0 | K19: 0 | L19: 0 | M19: 0 | N19: 0
A20: 66 | B20: 66 | D20: 96467 | E20: 67010 | F20: 47873 | G20: 42741 | H20: 36743 | J20: 0 | K20: 0 | L20: 0 | M20: 0 | N20: 0
A21: 67 | B21: 67 | D21: 105370 | E21: 73186 | F21: 52294 | G21: 46671 | H21: 40139 | J21: 0 | K21: 0 | L21: 0 | M21: 0 | N21: 0
A22: 68 | B22: 68 | D22: 116679 | E22: 81039 | F22: 57900 | G22: 51695 | H22: 44452 | J22: 0 | K22: 0 | L22: 0 | M22: 0 | N22: 0
A23: 69 | B23: 69 | D23: 128381 | E23: 89160 | F23: 63712 | G23: 56874 | H23: 48918 | J23: 0 | K23: 0 | L23: 0 | M23: 0 | N23: 0
A24: 70 | B24: 70 | D24: 158016 | E24: 108580 | F24: 75013 | G24: 66291 | H24: 57541 | J24: 0 | K24: 0 | L24: 0 | M24: 0 | N24: 0
A25: 71 | B25: 71 | D25: 164217 | E25: 112839 | F25: 77957 | G25: 68894 | H25: 59805 | J25: 0 | K25: 0 | L25: 0 | M25: 0 | N25: 0
A26: 72 | B26: 72 | D26: 168872 | E26: 116034 | F26: 80156 | G26: 70838 | H26: 61500 | J26: 0 | K26: 0 | L26: 0 | M26: 0 | N26: 0
A27: 73 | B27: 73 | D27: 175073 | E27: 120305 | F27: 83099 | G27: 73456 | H27: 63765 | J27: 0 | K27: 0 | L27: 0 | M27: 0 | N27: 0
A28: 74 | B28: 74 | D28: 178175 | E28: 122426 | F28: 84585 | G28: 74752 | H28: 64887 | J28: 0 | K28: 0 | L28: 0 | M28: 0 | N28: 0
A29: 75 | B29: 75+ | D29: 185937 | E29: 127756 | F29: 88256 | G29: 78010 | H29: 67715 | J29: 0 | K29: 0 | L29: 0 | M29: 0 | N29: 0
A30: 1 | B30: 1 Child | D30: 6945 | E30: 5115 | F30: 3907 | G30: 3266 | H30: 2546 | J30: 0 | K30: 0 | L30: 0 | M30: 0 | N30: 0
A31: 2 | B31: 2 Children | D31: 11045 | E31: 8147 | F31: 6216 | G31: 5185 | H31: 4031 | J31: 0 | K31: 0 | L31: 0 | M31: 0 | N31: 0
A32: 3 | B32: 3+ Children | D32: 16193 | E32: 11945 | F32: 9101 | G32: 7597 | H32: 5911 | J32: 0 | K32: 0 | L32: 0 | M32: 0 | N32: 0
A33: 1 | B33: Rider Comp. Maternidad | D33: 0 | E33: 0 | F33: 225 | G33: 225 | H33: 225
A34: 1 | B34: Transplante de organos | D34: 0 | E34: 0 | F34: 0 | G34: 0 | H34: 0
A36: TARIFAS SEMESTRALES
A37: EDAD
D38: DW2 | E38: DW3 | F38: DW4 | G38: DW5 | H38: DW6 | J38: 3 | K38: 7 | L38: 11 | M38: 15 | N38: 19
A39: 18 | B39: 18-24 | D39: =$L$2*D6 -> 10581.45 | E39: =$L$2*E6 -> 6988.05 | F39: 4620.54 | G39: 3246.25 | H39: 2551.42 | J39: 0 | K39: 0 | L39: 0 | M39: 0 | N39: 0
A40: 25 | B40: 25-29 | D40: =$L$2*D7 -> 11098.2 | E40: 7723.16 | F40: 5117.15 | G40: 3599.76 | H40: 2827.02 | J40: 0 | K40: 0 | L40: 0 | M40: 0 | N40: 0
A41: 30 | B41: 30-34 | D41: 11548.7 | E41: 8287.08 | F41: 5734.07 | G41: 4314.73 | H41: 3399.95 | J41: 0 | K41: 0 | L41: 0 | M41: 0 | N41: 0
A42: 35 | B42: 35-39 | D42: 12930.94 | E42: 9276.06 | F42: 6431.55 | G42: 4839.43 | H42: 3809.11 | J42: 0 | K42: 0 | L42: 0 | M42: 0 | N42: 0
A43: 40 | B43: 40-44 | D43: 14992.64 | E43: 10150.56 | F43: 7136.45 | G43: 5324.38 | H43: 4188.06 | J43: 0 | K43: 0 | L43: 0 | M43: 0 | N43: 0
A44: 45 | B44: 45-49 | D44: 16764.96 | E44: 11351.01 | F44: 7978.09 | G44: 5952.96 | H44: 4686.79 | J44: 0 | K44: 0 | L44: 0 | M44: 0 | N44: 0
A45: 50 | B45: 50-54 | D45: 21457.58 | E45: 14899.89 | F45: 10415.56 | G45: 8410.04 | H45: 6627.65 | J45: 0 | K45: 0 | L45: 0 | M45: 0 | N45: 0
A46: 55 | B46: 55-59 | D46: 22833.46 | E46: 15854.95 | F46: 11082.83 | G46: 8952.23 | H46: 7056.95 | J46: 0 | K46: 0 | L46: 0 | M46: 0 | N46: 0
A47: 60 | B47: 60 | D47: 24876.08 | E47: 17301.85 | F47: 12756.57 | G47: 10788.15 | H47: 8769.91 | J47: 0 | K47: 0 | L47: 0 | M47: 0 | N47: 0
A48: 61 | B48: 61 | D48: 26726.31 | E48: 18588.16 | F48: 13700.5 | G48: 11597.99 | H48: 9424.99 | J48: 0 | K48: 0 | L48: 0 | M48: 0 | N48: 0
A49: 62 | B49: 62 | D49: 29261.83 | E49: 20361.54 | F49: 15004.83 | G49: 12693.5 | H49: 10322.28 | J49: 0 | K49: 0 | L49: 0 | M49: 0 | N49: 0
A50: 63 | B50: 63 | D50: 31114.71 | E50: 21647.32 | F50: 15952.47 | G50: =$L$2*G17 -> 13502.28 | H50: 10975.24 | J50: 0 | K50: 0 | L50: 0 | M50: 0 | N50: 0
A51: 64 | B51: 64 | D51: 33661.89 | E51: 23426.53 | F51: 17262.63 | G51: 14607.33 | H51: 11880.48 | J51: 0 | K51: 0 | L51: 0 | M51: 0 | N51: 0
A52: 65 | B52: 65 | D52: 44008.02 | E52: 30558.21 | F52: 21832.29 | G52: 19486.51 | H52: 16758.6 | J52: 0 | K52: 0 | L52: 0 | M52: 0 | N52: 0
A53: 66 | B53: 66 | D53: 51127.51 | E53: 35515.3 | F53: 25372.69 | G53: 22652.73 | H53: 19473.79 | J53: 0 | K53: 0 | L53: 0 | M53: 0 | N53: 0
A54: 67 | B54: 67 | D54: 55846.1 | E54: 38788.58 | F54: 27715.82 | G54: 24735.63 | H54: 21273.67 | J54: 0 | K54: 0 | L54: 0 | M54: 0 | N54: 0
A55: 68 | B55: 68 | D55: 61839.87 | E55: 42950.67 | F55: 30687 | G55: 27398.35 | H55: 23559.56 | J55: 0 | K55: 0 | L55: 0 | M55: 0 | N55: 0
A56: 69 | B56: 69 | D56: 68041.93 | E56: 47254.8 | F56: 33767.36 | G56: 30143.22 | H56: 25926.54 | J56: 0 | K56: 0 | L56: 0 | M56: 0 | N56: 0
A57: 70 | B57: 70 | D57: 83748.48 | E57: 57547.4 | F57: 39756.89 | G57: 35134.23 | H57: 30496.73 | J57: 0 | K57: 0 | L57: 0 | M57: 0 | N57: 0
A58: 71 | B58: 71 | D58: 87035.01 | E58: 59804.67 | F58: 41317.21 | G58: 36513.82 | H58: 31696.65 | J58: 0 | K58: 0 | L58: 0 | M58: 0 | N58: 0
A59: 72 | B59: 72 | D59: 89502.16 | E59: 61498.02 | F59: 42482.68 | G59: 37544.14 | H59: 32595 | J59: 0 | K59: 0 | L59: 0 | M59: 0 | N59: 0
A60: 73 | B60: 73 | D60: 92788.69 | E60: 63761.65 | F60: 44042.47 | G60: 38931.68 | H60: 33795.45 | J60: 0 | K60: 0 | L60: 0 | M60: 0 | N60: 0
A61: 74 | B61: 74 | D61: 94432.75 | E61: 64885.78 | F61: 44830.05 | G61: 39618.56 | H61: 34390.11 | J61: 0 | K61: 0 | L61: 0 | M61: 0 | N61: 0
A62: 75 | B62: 75+ | D62: 98546.61 | E62: 67710.68 | F62: 46775.68 | G62: 41345.3 | H62: 35888.95 | J62: 0 | K62: 0 | L62: 0 | M62: 0 | N62: 0
A63: 1 | B63: 1 Child | D63: 3680.85 | E63: 2710.95 | F63: 2070.71 | G63: 1730.98 | H63: 1349.38 | J63: 0 | K63: 0 | L63: 0 | M63: 0 | N63: 0
A64: 2 | B64: 2 Children | D64: 5853.85 | E64: 4317.91 | F64: 3294.48 | G64: 2748.05 | H64: 2136.43 | J64: 0 | K64: 0 | L64: 0 | M64: 0 | N64: 0
A65: 3 | B65: 3+ Children | D65: 8582.29 | E65: 6330.85 | F65: 4823.53 | G65: 4026.41 | H65: 3132.83 | J65: 0 | K65: 0 | L65: 0 | M65: 0 | N65: 0
A66: 1 | B66: Rider Comp. Maternidad | D66: =+D33*$L$2 -> 0 | E66: 0 | F66: 119.25 | G66: 119.25 | H66: 119.25
A67: 1 | B67: Transplante de organos | D67: 0 | E67: 0 | F67: 0 | G67: 0 | H67: 0
A69: DIAMOND (LATINAMERICA ONLY)
A70: TARIFAS ANUALES
A71: EDAD
C72: DL1 | D72: DL2 | E72: DL3 | F72: DL4 | G72: DL5 | H72: DL6
A73: 18 | B73: - 24
A74: 25 | B74: - 29
A75: 30 | B75: - 34
A76: 35 | B76: - 39
A77: 40 | B77: - 44
A78: 45 | B78: - 49
A79: 50 | B79: - 54
A80: 55 | B80: - 59
A81: 60
A82: 61
A83: 62
A84: 63
A85: 64
A86: 65
A87: 66
A88: 67
A89: 68
A90: 69
A91: 70
A92: 71
A93: 72
A94: 73
A95: 74
A96: 75 | B96: o más
A97: 1 | B97: Hijo
A98: 2 | B98: Hijos
A99: 3 | B99: Hijos o más
A100: 1 | B100: Rider Comp. Maternidad
A101: 1 | B101: Transplante de organos | C101: 0 | D101: 0 | E101: 0 | F101: 0 | G101: 0 | H101: 0
A103: TARIFAS SEMESTRALES
A104: EDAD
C105: DL1 | D105: DL2 | E105: DL3 | F105: DL4 | G105: DL5 | H105: DL6
A106: 18 | B106: - 24 | C106: =+C73*$L$2 -> 0 | D106: 0 | E106: 0 | F106: 0 | G106: 0 | H106: 0
A107: 25 | B107: - 29 | C107: 0 | D107: 0 | E107: 0 | F107: 0 | G107: 0 | H107: 0
A108: 30 | B108: - 34 | C108: 0 | D108: 0 | E108: 0 | F108: 0 | G108: 0 | H108: 0
A109: 35 | B109: - 39 | C109: 0 | D109: 0 | E109: 0 | F109: 0 | G109: 0 | H109: 0
A110: 40 | B110: - 44 | C110: 0 | D110: 0 | E110: 0 | F110: 0 | G110: 0 | H110: 0
A111: 45 | B111: - 49 | C111: 0 | D111: 0 | E111: 0 | F111: 0 | G111: 0 | H111: 0
A112: 50 | B112: - 54 | C112: 0 | D112: 0 | E112: 0 | F112: 0 | G112: 0 | H112: 0
A113: 55 | B113: - 59 | C113: 0 | D113: 0 | E113: 0 | F113: 0 | G113: 0 | H113: 0
A114: 60 | C114: 0 | D114: 0 | E114: 0 | F114: 0 | G114: 0 | H114: 0
A115: 61 | C115: 0 | D115: 0 | E115: 0 | F115: 0 | G115: 0 | H115: 0
A116: 62 | C116: =+C83*$L$2 -> 0 | D116: 0 | E116: 0 | F116: 0 | G116: 0 | H116: 0
A117: 63 | C117: 0 | D117: 0 | E117: 0 | F117: 0 | G117: 0 | H117: 0
A118: 64 | C118: 0 | D118: 0 | E118: 0 | F118: 0 | G118: 0 | H118: 0
A119: 65 | C119: 0 | D119: 0 | E119: 0 | F119: 0 | G119: 0 | H119: 0
A120: 66 | C120: 0 | D120: 0 | E120: 0 | F120: 0 | G120: 0 | H120: 0
A121: 67 | C121: 0 | D121: 0 | E121: 0 | F121: 0 | G121: 0 | H121: 0
A122: 68 | C122: 0 | D122: 0 | E122: 0 | F122: 0 | G122: 0 | H122: 0
A123: 69 | C123: 0 | D123: 0 | E123: 0 | F123: 0 | G123: 0 | H123: 0
A124: 70 | C124: 0 | D124: 0 | E124: 0 | F124: 0 | G124: 0 | H124: 0
A125: 71 | C125: 0 | D125: 0 | E125: 0 | F125: 0 | G125: 0 | H125: 0
A126: 72 | C126: =+C93*$L$2 -> 0 | D126: 0 | E126: 0 | F126: 0 | G126: 0 | H126: 0
A127: 73 | C127: 0 | D127: 0 | E127: 0 | F127: 0 | G127: 0 | H127: 0
A128: 74 | C128: 0 | D128: 0 | E128: 0 | F128: 0 | G128: 0 | H128: 0
A129: 75 | B129: o más | C129: 0 | D129: 0 | E129: 0 | F129: 0 | G129: 0 | H129: 0
A130: 1 | B130: Hijo | C130: 0 | D130: 0 | E130: 0 | F130: 0 | G130: 0 | H130: 0
A131: 2 | B131: Hijos | C131: 0 | D131: 0 | E131: 0 | F131: 0 | G131: 0 | H131: 0
A132: 3 | B132: Hijos o más | C132: 0 | D132: 0 | E132: 0 | F132: 0 | G132: 0 | H132: 0
A133: 1 | B133: Rider Comp. Maternidad | C133: 0 | D133: 0 | E133: 0 | F133: 0 | G133: 0 | H133: 0
A134: 1 | B134: Transplante de organos | C134: 0 | D134: 0 | E134: 0 | F134: 0 | G134: 0 | H134: 0
A136: PRIVILEGE
A137: TARIFAS ANUALES
A138: EDAD
D139: CW2 | E139: CW3 | F139: CW4 | G139: CW5 | H139: CW6 | J139: 2 | K139: 6 | L139: 10 | M139: 14 | N139: 18
A140: 18 | B140: 18-24 | D140: 16796 | E140: 11547 | F140: 7587 | G140: 5331 | H140: 4054 | J140: 0 | K140: 0 | L140: 0 | M140: 0 | N140: 0
A141: 25 | B141: 25-29 | D141: 17620 | E141: 12777 | F141: 8402 | G141: 5906 | H141: 4499 | J141: 0 | K141: 0 | L141: 0 | M141: 0 | N141: 0
A142: 30 | B142: 30-34 | D142: 18388 | E142: 13666 | F142: 9429 | G142: 7145 | H142: 5449 | J142: 0 | K142: 0 | L142: 0 | M142: 0 | N142: 0
A143: 35 | B143: 35-39 | D143: 20602 | E143: 15299 | F143: 10565 | G143: 8004 | H143: 6115 | J143: 0 | K143: 0 | L143: 0 | M143: 0 | N143: 0
A144: 40 | B144: 40-44 | D144: 23848 | E144: 16775 | F144: 11745 | G144: 8822 | H144: 6734 | J144: 0 | K144: 0 | L144: 0 | M144: 0 | N144: 0
A145: 45 | B145: 45-49 | D145: 26645 | E145: 18748 | F145: 13137 | G145: 9862 | H145: 7534 | J145: 0 | K145: 0 | L145: 0 | M145: 0 | N145: 0
A146: 50 | B146: 50-54 | D146: 34833 | E146: 24728 | F146: 17247 | G146: 14086 | H146: 10765 | J146: 0 | K146: 0 | L146: 0 | M146: 0 | N146: 0
A147: 55 | B147: 55-59 | D147: 37067 | E147: 26314 | F147: 18348 | G147: 14989 | H147: 11461 | J147: 0 | K147: 0 | L147: 0 | M147: 0 | N147: 0
A148: 60 | B148: 60 | D148: 40368 | E148: 28574 | F148: 20892 | G148: 17833 | H148: 14308 | J148: 0 | K148: 0 | L148: 0 | M148: 0 | N148: 0
A149: 61 | B149: 61 | D149: 43365 | E149: 30688 | F149: 22437 | G149: 19151 | H149: 15374 | J149: 0 | K149: 0 | L149: 0 | M149: 0 | N149: 0
A150: 62 | B150: 62 | D150: 47465 | E150: 33606 | F150: 24567 | G150: 20972 | H150: 16837 | J150: 0 | K150: 0 | L150: 0 | M150: 0 | N150: 0
A151: 63 | B151: 63 | D151: 50472 | E151: 35733 | F151: 26118 | G151: 22303 | H151: 17909 | J151: 0 | K151: 0 | L151: 0 | M151: 0 | N151: 0
A152: 64 | B152: 64 | D152: 54598 | E152: 38658 | F152: 28260 | G152: 24119 | H152: 19381 | J152: 0 | K152: 0 | L152: 0 | M152: 0 | N152: 0
A153: 65 | B153: 65 | D153: 71373 | E153: 50434 | F153: 35731 | G153: 32166 | H153: 27314 | J153: 0 | K153: 0 | L153: 0 | M153: 0 | N153: 0
A154: 66 | B154: 66 | D154: 82913 | E154: 58596 | F154: 41513 | G154: 37391 | H154: 31745 | J154: 0 | K154: 0 | L154: 0 | M154: 0 | N154: 0
A155: 67 | B155: 67 | D155: 90560 | E155: 64002 | F155: 45344 | G155: 40836 | H155: 34669 | J155: 0 | K155: 0 | L155: 0 | M155: 0 | N155: 0
A156: 68 | B156: 68 | D156: 100270 | E156: 70852 | F156: 50210 | G156: 45217 | H156: 38380 | J156: 0 | K156: 0 | L156: 0 | M156: 0 | N156: 0
A157: 69 | B157: 69 | D157: 110321 | E157: 77958 | F157: 55237 | G157: 49749 | H157: 42242 | J157: 0 | K157: 0 | L157: 0 | M157: 0 | N157: 0
A158: 70 | B158: 70 | D158: 135767 | E158: 94934 | F158: 65024 | G158: 57963 | H158: 49686 | J158: 0 | K158: 0 | L158: 0 | M158: 0 | N158: 0
A159: 71 | B159: 71 | D159: 141096 | E159: 98652 | F159: 67580 | G159: 60245 | H159: 51640 | J159: 0 | K159: 0 | L159: 0 | M159: 0 | N159: 0
A160: 72 | B160: 72 | D160: 145098 | E160: 101442 | F160: 69491 | G160: 61954 | H160: 53101 | J160: 0 | K160: 0 | L160: 0 | M160: 0 | N160: 0
A161: 73 | B161: 73 | D161: 150416 | E161: 105172 | F161: 72038 | G161: 64225 | H161: 55065 | J161: 0 | K161: 0 | L161: 0 | M161: 0 | N161: 0
A162: 74 | B162: 74 | D162: 153099 | E162: 107038 | F162: 73322 | G162: 65363 | H162: 56027 | J162: 0 | K162: 0 | L162: 0 | M162: 0 | N162: 0
A163: 75 | B163: 75+ | D163: 159748 | E163: 111695 | F163: 76509 | G163: 68205 | H163: 58464 | J163: 0 | K163: 0 | L163: 0 | M163: 0 | N163: 0
A164: 1 | B164: 1 Child | D164: 5819 | E164: 4260 | F164: 3090 | G164: 2575 | H164: 1911 | J164: 0 | K164: 0 | L164: 0 | M164: 0 | N164: 0
A165: 2 | B165: 2 Children | D165: 9267 | E165: 6777 | F165: 4910 | G165: 4089 | H165: 3035 | J165: 0 | K165: 0 | L165: 0 | M165: 0 | N165: 0
A166: 3 | B166: 3+ Children | D166: 13582 | E166: 9928 | F166: 7190 | G166: 5993 | H166: 4449 | J166: 0 | K166: 0 | L166: 0 | M166: 0 | N166: 0
A167: 1 | B167: Rider Comp. Maternidad | D167: 0 | E167: 0 | F167: 225 | G167: 225 | H167: 225
A168: 1 | B168: Transplante de organos | D168: 0 | E168: 0 | F168: 0 | G168: 0 | H168: 0
A170: TARIFAS SEMESTRALES
A171: EDAD
D172: CW2 | E172: CW3 | F172: CW4 | G172: CW5 | H172: CW6 | J172: 3 | K172: 7 | L172: 11 | M172: 15 | N172: 19
A173: 18 | B173: 18-24 | D173: =$L$2*D140 -> 8901.88 | E173: =$L$2*E140 -> 6119.91 | F173: 4021.11 | G173: 2825.43 | H173: 2148.62 | J173: 0 | K173: 0 | L173: 0 | M173: 0 | N173: 0
A174: 25 | B174: 25-29 | D174: =$L$2*D141 -> 9338.6 | E174: 6771.81 | F174: 4453.06 | G174: 3130.18 | H174: 2384.47 | J174: 0 | K174: 0 | L174: 0 | M174: 0 | N174: 0
A175: 30 | B175: 30-34 | D175: 9745.64 | E175: 7242.98 | F175: 4997.37 | G175: 3786.85 | H175: 2887.97 | J175: 0 | K175: 0 | L175: 0 | M175: 0 | N175: 0
A176: 35 | B176: 35-39 | D176: 10919.06 | E176: 8108.47 | F176: 5599.45 | G176: 4242.12 | H176: =$L$2*H143 -> 3240.95 | J176: 0 | K176: 0 | L176: 0 | M176: 0 | N176: 0
A177: 40 | B177: 40-44 | D177: 12639.44 | E177: 8890.75 | F177: 6224.85 | G177: 4675.66 | H177: 3569.02 | J177: 0 | K177: 0 | L177: 0 | M177: 0 | N177: 0
A178: 45 | B178: 45-49 | D178: 14121.85 | E178: 9936.44 | F178: 6962.61 | G178: 5226.86 | H178: 3993.02 | J178: 0 | K178: 0 | L178: 0 | M178: 0 | N178: 0
A179: 50 | B179: 50-54 | D179: 18461.49 | E179: 13105.84 | F179: 9140.91 | G179: 7465.58 | H179: 5705.45 | J179: 0 | K179: 0 | L179: 0 | M179: 0 | N179: 0
A180: 55 | B180: 55-59 | D180: 19645.51 | E180: 13946.42 | F180: 9724.44 | G180: 7944.17 | H180: 6074.33 | J180: 0 | K180: 0 | L180: 0 | M180: 0 | N180: 0
A181: 60 | B181: 60 | D181: 21395.04 | E181: 15144.22 | F181: 11072.76 | G181: 9451.49 | H181: 7583.24 | J181: 0 | K181: 0 | L181: 0 | M181: 0 | N181: 0
A182: 61 | B182: 61 | D182: 22983.45 | E182: 16264.64 | F182: 11891.61 | G182: 10150.03 | H182: 8148.22 | J182: 0 | K182: 0 | L182: 0 | M182: 0 | N182: 0
A183: 62 | B183: 62 | D183: 25156.45 | E183: 17811.18 | F183: 13020.51 | G183: 11115.16 | H183: 8923.61 | J183: 0 | K183: 0 | L183: 0 | M183: 0 | N183: 0
A184: 63 | B184: 63 | D184: 26750.16 | E184: 18938.49 | F184: 13842.54 | G184: 11820.59 | H184: 9491.77 | J184: 0 | K184: 0 | L184: 0 | M184: 0 | N184: 0
A185: 64 | B185: 64 | D185: 28936.94 | E185: 20488.74 | F185: 14977.8 | G185: 12783.07 | H185: 10271.93 | J185: 0 | K185: 0 | L185: 0 | M185: 0 | N185: 0
A186: 65 | B186: 65 | D186: 37827.69 | E186: 26730.02 | F186: 18937.43 | G186: 17047.98 | H186: 14476.42 | J186: 0 | K186: 0 | L186: 0 | M186: 0 | N186: 0
A187: 66 | B187: 66 | D187: 43943.89 | E187: 31055.88 | F187: 22001.89 | G187: 19817.23 | H187: 16824.85 | J187: 0 | K187: 0 | L187: 0 | M187: 0 | N187: 0
A188: 67 | B188: 67 | D188: 47996.8 | E188: 33921.06 | F188: 24032.32 | G188: 21643.08 | H188: 18374.57 | J188: 0 | K188: 0 | L188: 0 | M188: 0 | N188: 0
A189: 68 | B189: 68 | D189: 53143.1 | E189: 37551.56 | F189: 26611.3 | G189: 23965.01 | H189: 20341.4 | J189: 0 | K189: 0 | L189: 0 | M189: 0 | N189: 0
A190: 69 | B190: 69 | D190: 58470.13 | E190: 41317.74 | F190: 29275.61 | G190: 26366.97 | H190: 22388.26 | J190: 0 | K190: 0 | L190: 0 | M190: 0 | N190: 0
A191: 70 | B191: 70 | D191: 71956.51 | E191: 50315.02 | F191: 34462.72 | G191: 30720.39 | H191: 26333.58 | J191: 0 | K191: 0 | L191: 0 | M191: 0 | N191: 0
A192: 71 | B192: 71 | D192: 74780.88 | E192: 52285.56 | F192: 35817.4 | G192: 31929.85 | H192: 27369.2 | J192: 0 | K192: 0 | L192: 0 | M192: 0 | N192: 0
A193: 72 | B193: 72 | D193: 76901.94 | E193: 53764.26 | F193: 36830.23 | G193: 32835.62 | H193: 28143.53 | J193: 0 | K193: 0 | L193: 0 | M193: 0 | N193: 0
A194: 73 | B194: 73 | D194: 79720.48 | E194: 55741.16 | F194: 38180.14 | G194: 34039.25 | H194: 29184.45 | J194: 0 | K194: 0 | L194: 0 | M194: 0 | N194: 0
A195: 74 | B195: 74 | D195: 81142.47 | E195: 56730.14 | F195: 38860.66 | G195: 34642.39 | H195: 29694.31 | J195: 0 | K195: 0 | L195: 0 | M195: 0 | N195: 0
A196: 75 | B196: 75+ | D196: 84666.44 | E196: 59198.35 | F196: 40549.77 | G196: 36148.65 | H196: 30985.92 | J196: 0 | K196: 0 | L196: 0 | M196: 0 | N196: 0
A197: 1 | B197: 1 Child | D197: 3084.07 | E197: 2257.8 | F197: 1637.7 | G197: 1364.75 | H197: 1012.83 | J197: 0 | K197: 0 | L197: 0 | M197: 0 | N197: 0
A198: 2 | B198: 2 Children | D198: 4911.51 | E198: 3591.81 | F198: 2602.3 | G198: =$L$2*G165 -> 2167.17 | H198: 1608.55 | J198: 0 | K198: 0 | L198: 0 | M198: 0 | N198: 0
A199: 3 | B199: 3+ Children | D199: 7198.46 | E199: 5261.84 | F199: 3810.7 | G199: 3176.29 | H199: 2357.97 | J199: 0 | K199: 0 | L199: 0 | M199: 0 | N199: 0
A200: 1 | B200: Rider Comp. Maternidad | D200: =+D167*$L$2 -> 0 | E200: 0 | F200: 119.25 | G200: 119.25 | H200: 119.25
A201: 1 | B201: Transplante de organos | D201: 0 | E201: 0 | F201: 0 | G201: 0 | H201: 0
A203: COMPLETE (LATINAMERICA ONLY)
A204: TARIFAS ANUALES
A205: EDAD
C206: CL1 | D206: CL2 | E206: CL3 | F206: CL4 | G206: CL5 | H206: CL6
A207: 18 | B207: - 24
... 333 more rows
